fUSD/lending_fUSD_20240109
["ID","MTS","AMOUNT","RATE_DAILY","PERIOD"]
[310960355,1704835970581,-5796.52,0.0004126,30]
[310960357,1704835970591,-595.48,0.0004126,30]
[310960359,1704835970600,-772.79,0.0004126,30]
[310960361,1704835970610,-500.0,0.0004126,30]
[310960363,1704835970619,-1773.57,0.0004126,30]
[310960365,1704835970628,-1436.73,0.0004126,30]
[310960367,1704835970638,-1274.83,0.0004126,30]
[310960369,1704835970651,-500.0,0.0004126,30]
[310960371,1704835970661,-823.79,0.0004126,30]
[310960373,1704835970671,-500.0,0.0004126,30]
[310960375,1704835970681,-767.78,0.0004126,30]
[310960377,1704835970690,-1000.0,0.0004126,30]
[310960379,1704835970699,-500.0,0.0004126,30]
[310960381,1704835970709,-500.0,0.0004126,30]
[310960383,1704835970719,-924.78,0.0004126,30]
[310960385,1704835970728,-1944.68,0.0004126,30]
[310960387,1704835970737,-1764.13,0.0004126,30]
[310960389,1704835970747,-10402.25,0.0004126,30]
[310960391,1704835970757,-500.0,0.0004126,30]
[310960393,1704835970767,-500.0,0.0004126,30]
[310960395,1704835970777,-4288.57,0.0004126,30]
[310960397,1704835970788,-4303.2,0.0004126,30]
[310960399,1704835970798,-7059.7,0.0004126,30]
[310960401,1704835970809,-1000.0,0.0004126,2]
[310960403,1704835970819,-210.26,0.0004126,30]
[310960405,1704835970829,-6327.7,0.0004126,30]
[310960407,1704835970839,-1629.67,0.0004126,30]
[310960409,1704835970848,-2082.36,0.0004126,30]
[310960411,1704835970859,-699.1,0.0004126,30]
[310960413,1704835970869,-500.0,0.0004126,30]
[310960415,1704835970878,-737.62,0.0004126,30]
[310960417,1704835970888,-961.05,0.0004126,30]
[310960419,1704835970903,-296.0,0.0004127,120]
[310960421,1704835970912,-296.0,0.0004128,120]
[310960422,1704835970923,-296.0,0.0004129,120]
[310960423,1704835970932,-6557.51547715,0.000413,7]
[310960424,1704835970942,-8750.0,0.000413,5]
[310960425,1704835970951,-17402.0,0.000413,5]
[310960426,1704835970960,-293.7858683,0.00041314,2]
[310960427,1704835970970,-752.8600039,0.00041314,2]
[310960428,1704835970979,-11524.3855757,0.00041314,2]
[310960429,1704835970988,-703.5150511,0.00041314,2]
[310960430,1704835970998,-1189.3338025,0.00041314,2]
[310960431,1704835971007,-204.0,0.00041315,11]
[310960432,1704835971016,-151.0,0.00041342,7]
[310960433,1704835971025,-223.072604,0.00041342,14]
[310960435,1704835971034,-554.62552004,0.00041342,2]
[310960436,1704835971044,-151.0,0.00041342,14]
[310960439,1704835971053,-190.450912,0.00041342,14]
[310960440,1704835971063,-190.450912,0.00041342,14]
[310960443,1704835971073,-151.0,0.00041342,14]
[310960445,1704835971084,-5000.0,0.00041342,30]
[310960447,1704835971094,-500.0,0.00041342,30]
[310960449,1704835971104,-500.0,0.00041342,30]
[310960451,1704835971114,-500.0,0.00041342,30]
[310960453,1704835971124,-500.0,0.00041342,30]
[310960455,1704835971134,-500.0,0.00041342,30]
[310960457,1704835971146,-500.0,0.00041342,30]
[310960459,1704835971156,-500.0,0.00041342,30]
[310960461,1704835971166,-500.0,0.00041342,30]
[310960463,1704835971176,-519.07,0.00041342,30]
[310960465,1704835971185,-500.0,0.00041342,30]
[310960467,1704835971195,-500.0,0.00041342,30]
[310960469,1704835971209,-500.0,0.00041342,30]
[310960471,1704835971219,-500.0,0.00041342,30]
[310960473,1704835971230,-500.0,0.00041342,30]
[310960475,1704835971239,-500.0,0.00041342,30]
[310960477,1704835971249,-500.0,0.00041342,30]
[310960479,1704835971259,-500.0,0.00041342,30]
[310960481,1704835971268,-500.0,0.00041342,7]
[310960483,1704835971278,-500.0,0.00041342,30]
[310960485,1704835971289,-221.55098947,0.00041342,30]
[310960487,1704835971299,-500.0,0.00041342,30]
[310960489,1704835971310,-1003.07,0.00041342,6]
[310960491,1704835971320,-500.0,0.00041342,30]
[310960493,1704835971330,-500.0,0.00041342,30]
[310960495,1704835971341,-261.62997141,0.00041342,30]
[310960497,1704835971351,-500.0,0.00041342,30]
[310960500,1704835971361,-599.12,0.00041342,30]
[310960502,1704835971373,-384.14610744,0.00041342,30]
[310960504,1704835971383,-500.0,0.00041342,30]
[310960506,1704835971396,-500.0,0.00041342,30]
[310960508,1704835971407,-500.0,0.00041342,30]
[310960510,1704835971418,-500.0,0.00041342,30]
[310960512,1704835971428,-500.0,0.00041342,30]
[310960514,1704835971438,-870.95,0.00041342,30]
[310960516,1704835971449,-774.16,0.00041342,30]
[310960517,1704835971459,-500.0,0.00041342,30]
[310960520,1704835971470,-500.0,0.00041342,2]
[310960522,1704835971480,-628.44,0.00041342,30]
[310960523,1704835971491,-500.0,0.00041342,30]
[310960526,1704835971501,-500.0,0.00041342,30]
[310960528,1704835971511,-412.22074078,0.00041342,30]
[310960530,1704835971520,-583.93,0.00041342,30]
[310960532,1704835971530,-500.0,0.00041342,30]
[310960534,1704835971540,-664.43,0.00041342,30]
[310960536,1704835971550,-642.11,0.00041342,30]
[310960538,1704835971561,-1006.44,0.00041342,30]
[310960540,1704835971570,-500.0,0.00041342,30]
[310960542,1704835971580,-500.0,0.00041342,30]
[310960544,1704835971591,-785.15,0.00041342,30]
[310960546,1704835971601,-500.0,0.00041342,30]
[310960548,1704835971612,-500.0,0.00041342,30]
[310960550,1704835971622,-500.0,0.00041342,30]
[310960552,1704835971632,-500.0,0.00041342,30]
[310960554,1704835971644,-500.0,0.00041342,30]
[310960556,1704835971654,-500.0,0.00041342,30]
[310960558,1704835971664,-504.32992265,0.00041342,30]
[310960560,1704835971674,-500.0,0.00041342,30]
[310960562,1704835971685,-500.0,0.00041342,30]
[310960564,1704835971695,-508.33278517,0.00041342,30]
[310960566,1704835971705,-500.0,0.00041342,30]
[310960568,1704835971714,-647.85,0.00041342,30]
[310960570,1704835971725,-500.0,0.00041342,30]
[310960572,1704835971734,-545.59729091,0.00041342,30]
[310960575,1704835971748,-1176.3,0.00041342,30]
[310960577,1704835971757,-892.9,0.00041342,30]
[310960579,1704835971767,-500.0,0.00041342,30]
[310960581,1704835971776,-500.0,0.00041342,30]
[310960583,1704835971786,-500.0,0.00041342,30]
[310960585,1704835971796,-500.0,0.00041342,30]
[310960587,1704835971805,-500.0,0.00041342,30]
[310960589,1704835971815,-500.0,0.00041342,30]
[310960591,1704835971824,-500.0,0.00041342,30]
[310960593,1704835971833,-500.0,0.00041342,30]
[310960595,1704835971842,-875.0,0.00041342,30]
[310960597,1704835971852,-500.0,0.00041342,30]
[310960599,1704835971862,-500.0,0.00041342,30]
[310960601,1704835971871,-500.0,0.00041342,30]
[310960603,1704835971881,-1021.0,0.00041342,30]
[310960605,1704835971894,-500.0,0.00041342,30]
[310960607,1704835971903,-500.0,0.00041342,30]
[310960609,1704835971914,-924.33,0.00041342,30]
[310960611,1704835971923,-500.0,0.00041342,30]
[310960613,1704835971932,-552.38,0.00041342,30]
[310960615,1704835971942,-1079.22,0.00041342,30]
[310960617,1704835971951,-500.0,0.00041342,30]
[310960619,1704835971961,-500.0,0.00041342,30]
[310960621,1704835971970,-500.0,0.00041342,30]
[310960623,1704835971980,-500.0,0.00041342,30]
[310960625,1704835971989,-500.0,0.00041342,30]
[310960627,1704835971998,-749.02,0.00041342,30]
[310960629,1704835972008,-500.0,0.00041342,30]
[310960631,1704835972017,-598.76714425,0.00041342,30]
[310960633,1704835972027,-500.0,0.00041342,30]
[310960636,1704835972037,-500.0,0.00041342,30]
[310960638,1704835972046,-500.0,0.00041342,30]
[310960640,1704835972055,-507.33,0.00041342,30]
[310960642,1704835972064,-500.0,0.00041342,30]
[310960643,1704835972074,-500.0,0.00041342,30]
[310960645,1704835972083,-625.46336095,0.00041342,30]
[310960646,1704835972093,-500.0,0.00041342,30]
[310960648,1704835972102,-500.0,0.00041342,30]
[310960650,1704835972111,-500.0,0.00041342,30]
[310960652,1704835972121,-500.0,0.00041342,30]
[310960654,1704835972131,-556.06,0.00041342,30]
[310960656,1704835972140,-359.12819878,0.00041342,30]
[310960658,1704835972152,-500.0,0.00041342,30]
[310960660,1704835972162,-500.0,0.00041342,30]
[310960662,1704835972171,-500.0,0.00041342,30]
[310960664,1704835972180,-544.95,0.00041342,30]
[310960666,1704835972189,-500.0,0.00041342,30]
[310960668,1704835972199,-500.0,0.00041342,30]
[310960670,1704835972209,-500.0,0.00041342,30]
[310960672,1704835972218,-889.52,0.00041342,30]
[310960674,1704835972228,-643.58,0.00041342,30]
[310960676,1704835972237,-500.0,0.00041342,30]
[310960678,1704835972246,-857.15,0.00041342,30]
[310960680,1704835972256,-526.34162356,0.00041342,30]
[310960682,1704835972265,-549.07,0.00041342,30]
[310960684,1704835972275,-500.0,0.00041342,30]
[310960686,1704835972284,-740.92,0.00041342,30]
[310960688,1704835972294,-674.98,0.00041342,30]
[310960690,1704835972303,-500.0,0.00041342,30]
[310960692,1704835972313,-500.0,0.00041342,30]
[310960694,1704835972322,-879.09,0.00041342,30]
[310960696,1704835972331,-500.0,0.00041342,30]
[310960697,1704835972341,-525.43,0.00041342,30]
[310960699,1704835972350,-500.0,0.00041342,30]
[310960701,1704835972360,-500.0,0.00041342,30]
[310960703,1704835972370,-500.0,0.00041342,30]
[310960705,1704835972379,-500.0,0.00041342,30]
[310960708,1704835972389,-894.54,0.00041342,30]
[310960710,1704835972402,-500.0,0.00041342,30]
[310960736,1704835972639,-1210.61,0.00041342,30]
[310960738,1704835972651,-431.49529689,0.00041342,30]
[310960740,1704835972660,-500.0,0.00041342,30]
[310960742,1704835972669,-500.0,0.00041342,30]
[310960744,1704835972679,-500.0,0.00041342,30]
[310960746,1704835972688,-1262.57,0.00041342,30]
[310960748,1704835972698,-515.14370685,0.00041342,30]
[310960749,1704835972708,-500.0,0.00041342,30]
[310960752,1704835972718,-767.71,0.00041342,30]
[310960754,1704835972729,-571.45,0.00041342,30]
[310960757,1704835972750,-532.50332359,0.00041342,30]
[310960759,1704835972760,-500.0,0.00041342,30]
[310960761,1704835972770,-500.0,0.00041342,30]
[310960763,1704835972781,-500.0,0.00041342,30]
[310960765,1704835972791,-525.7832257,0.00041342,30]
[310960767,1704835972801,-1000.0,0.00041342,30]
[310960769,1704835972810,-500.0,0.00041342,30]
[310960771,1704835972820,-1012.62,0.00041342,30]
[310960773,1704835972829,-568.08,0.00041342,30]
[310960775,1704835972840,-500.0,0.00041342,30]
[310960777,1704835972850,-1247.69,0.00041342,30]
[310960779,1704835972860,-500.0,0.00041342,30]
[310960781,1704835972869,-504.29,0.00041342,30]
[310960783,1704835972879,-744.29,0.00041342,30]
[310960785,1704835972888,-500.0,0.00041342,30]
[310960786,1704835972900,-500.0,0.00041342,30]
[310960787,1704835972910,-1071.67,0.00041342,30]
[310960788,1704835972919,-500.0,0.00041342,30]
[310960789,1704835972929,-1041.65,0.00041342,30]
[310960790,1704835972939,-597.48,0.00041342,30]
[310960791,1704835972948,-670.96,0.00041342,30]
[310960792,1704835972958,-500.0,0.00041342,30]
[310960793,1704835972968,-500.0,0.00041342,30]
[310960794,1704835972978,-992.5,0.00041342,30]
[310960795,1704835972989,-500.0,0.00041342,30]
[310960796,1704835972998,-500.0,0.00041342,30]
[310960798,1704835973008,-1379.24,0.00041342,30]
[310960800,1704835973018,-500.0,0.00041342,30]
[310960802,1704835973028,-500.0,0.00041342,30]
[310960804,1704835973039,-891.81,0.00041342,30]
[310960806,1704835973049,-500.0,0.00041342,30]
[310960808,1704835973059,-500.0,0.00041342,30]
[310960810,1704835973071,-3464.95,0.00041342,30]
[310960812,1704835973082,-500.0,0.00041342,30]
[310960814,1704835973092,-500.0,0.00041342,30]
[310960816,1704835973101,-500.0,0.00041342,30]
[310960818,1704835973111,-838.55,0.00041342,30]
[310960820,1704835973122,-660.81,0.00041342,30]
[310960822,1704835973133,-1525.96,0.00041342,30]
[310960824,1704835973147,-940.28,0.00041342,30]
[310960826,1704835973158,-797.09,0.00041342,30]
[310960828,1704835973168,-500.0,0.00041342,30]
[310960830,1704835973178,-500.0,0.00041342,30]
[310960833,1704835973188,-500.0,0.00041342,30]
[310960835,1704835973198,-500.0,0.00041342,30]
[310960837,1704835973208,-500.0,0.00041342,30]
[310960839,1704835973218,-1021.78,0.00041342,30]
[310960841,1704835973228,-1950.33,0.00041342,30]
[310960843,1704835973237,-500.0,0.00041342,30]
[310960845,1704835973247,-500.0,0.00041342,30]
[310960847,1704835973257,-500.0,0.00041342,30]
[310960849,1704835973267,-765.32,0.00041342,30]
[310960851,1704835973277,-624.2,0.00041342,30]
[310960853,1704835973287,-500.0,0.00041342,30]
[310960855,1704835973297,-1106.38,0.00041342,30]
[310960857,1704835973307,-581.2,0.00041342,30]
[310960859,1704835973317,-500.0,0.00041342,30]
[310960861,1704835973327,-227.58557562,0.00041342,30]
[310960863,1704835973339,-779.64,0.00041342,30]
[310960865,1704835973351,-500.0,0.00041342,30]
[310960867,1704835973360,-500.0,0.00041342,30]
[310960869,1704835973371,-500.0,0.00041342,30]
[310960871,1704835973383,-500.0,0.00041342,30]
[310960873,1704835973395,-557.57,0.00041342,30]
[310960875,1704835973405,-742.05,0.00041342,30]
[310960878,1704835973416,-578.59,0.00041342,30]
[310960880,1704835973427,-500.0,0.00041342,30]
[310960882,1704835973438,-500.0,0.00041342,30]
[310960884,1704835973448,-500.0,0.00041342,30]
[310960886,1704835973458,-718.23,0.00041342,30]
[310960888,1704835973467,-500.0,0.00041342,30]
[310960890,1704835973478,-500.0,0.00041342,30]
[310960892,1704835973488,-500.0,0.00041342,30]
[310960894,1704835973498,-507.39593235,0.00041342,30]
[310960896,1704835973508,-500.0,0.00041342,30]
[310960898,1704835973519,-500.0,0.00041342,30]
[310960900,1704835973528,-500.0,0.00041342,30]
[310960902,1704835973538,-500.0,0.00041342,30]
[310960905,1704835973548,-500.0,0.00041342,30]
[310960907,1704835973557,-1681.49,0.00041342,30]
[310960909,1704835973567,-667.7,0.00041342,30]
[310960911,1704835973577,-589.36265176,0.00041342,30]
[310960913,1704835973587,-500.0,0.00041342,30]
[310960915,1704835973596,-500.0,0.00041342,30]
[310960917,1704835973606,-500.0,0.00041342,30]
[310960919,1704835973616,-803.72,0.00041342,30]
[310960921,1704835973626,-691.09,0.00041342,30]
[310960923,1704835973636,-198.4466447,0.00041342,30]
[310960925,1704835973648,-820.84,0.00041342,30]
[310960927,1704835973658,-500.0,0.00041342,30]
[310960929,1704835973668,-500.0,0.00041342,7]
[310960931,1704835973677,-500.0,0.00041342,30]
[310960933,1704835973687,-500.0,0.00041342,30]
[310960935,1704835973696,-612.42,0.00041342,30]
[310960937,1704835973706,-500.0,0.00041342,30]
[310960939,1704835973716,-500.0,0.00041342,30]
[310960941,1704835973725,-500.0,0.00041342,30]
[310960943,1704835973735,-500.0,0.00041342,30]
[310960945,1704835973745,-500.0,0.00041342,30]
[310960947,1704835973755,-500.0,0.00041342,30]
[310960949,1704835973765,-700.31,0.00041342,30]
[310960951,1704835973775,-500.0,0.00041342,30]
[310960953,1704835973785,-1173.84,0.00041342,30]
[310960955,1704835973795,-500.0,0.00041342,30]
[310960957,1704835973805,-500.0,0.00041342,30]
[310960960,1704835973815,-890.72,0.00041342,30]
[310960962,1704835973825,-519.17,0.00041342,30]
[310960964,1704835973834,-681.49,0.00041342,30]
[310960966,1704835973844,-500.0,0.00041342,30]
[310960968,1704835973854,-627.48,0.00041342,30]
[310960970,1704835973863,-1141.38,0.00041342,30]
[310960972,1704835973873,-596.45,0.00041342,30]
[310960974,1704835973882,-1148.32,0.00041342,30]
[310960976,1704835973891,-500.0,0.00041342,30]
[310960978,1704835973903,-616.05,0.00041342,30]
[310960980,1704835973912,-500.0,0.00041342,30]
[310960982,1704835973922,-1154.54,0.00041342,30]
[310960984,1704835973932,-500.0,0.00041342,30]
[310960986,1704835973942,-559.95347233,0.00041342,15]
[310960988,1704835973951,-500.0,0.00041342,30]
[310960990,1704835973961,-500.0,0.00041342,30]
[310960993,1704835973971,-622.7,0.00041342,30]
[310960995,1704835973981,-1370.57,0.00041342,30]
[310960997,1704835973991,-724.45,0.00041342,30]
[310960999,1704835974000,-500.0,0.00041342,30]
[310961001,1704835974010,-500.0,0.00041342,30]
[310961003,1704835974019,-555.95,0.00041342,30]
[310961005,1704835974028,-500.0,0.00041342,30]
[310961007,1704835974038,-500.0,0.00041342,30]
[310961009,1704835974047,-677.52,0.00041342,30]
[310961011,1704835974056,-500.0,0.00041342,30]
[310961013,1704835974066,-500.0,0.00041342,30]
[310961015,1704835974075,-500.0,0.00041342,30]
[310961017,1704835974085,-500.65553288,0.00041342,30]
[310961019,1704835974095,-500.0,0.00041342,30]
[310961021,1704835974105,-500.0,0.00041342,30]
[310961023,1704835974115,-854.7,0.00041342,30]
[310961025,1704835974125,-500.0,0.00041342,30]
[310961027,1704835974135,-1132.67,0.00041342,30]
[310961029,1704835974146,-500.0,0.00041342,30]
[310961031,1704835974155,-500.0,0.00041342,30]
[310961033,1704835974165,-500.0,0.00041342,30]
[310961035,1704835974174,-500.0,0.00041342,30]
[310961037,1704835974184,-950.79,0.00041342,30]
[310961039,1704835974193,-500.0,0.00041342,30]
[310961041,1704835974203,-500.0,0.00041342,30]
[310961043,1704835974212,-1393.23,0.00041342,30]
[310961045,1704835974222,-500.0,0.00041342,30]
[310961047,1704835974232,-1054.09,0.00041342,30]
[310961049,1704835974241,-500.0,0.00041342,30]
[310961051,1704835974250,-500.0,0.00041342,30]
[310961054,1704835974260,-500.0,0.00041342,30]
[310961056,1704835974270,-500.0,0.00041342,30]
[310961058,1704835974280,-982.92,0.00041342,30]
[310961060,1704835974289,-897.66,0.00041342,30]
[310961062,1704835974299,-612.78,0.00041342,30]
[310961064,1704835974309,-1038.74,0.00041342,30]
[310961066,1704835974319,-500.0,0.00041342,30]
[310961068,1704835974329,-500.0,0.00041342,30]
[310961070,1704835974340,-585.83,0.00041342,30]
[310961072,1704835974350,-1010.24,0.00041342,30]
[310961074,1704835974360,-500.0,0.00041342,30]
[310961076,1704835974369,-625.2,0.00041342,30]
[310961078,1704835974379,-500.0,0.00041342,30]
[310961080,1704835974389,-500.0,0.00041342,30]
[310961082,1704835974404,-500.0,0.00041342,30]
[310961084,1704835974415,-1823.52,0.00041342,30]
[310961086,1704835974425,-500.0,0.00041342,30]
[310961088,1704835974436,-1503.9,0.00041342,30]
[310961090,1704835974446,-500.0,0.00041342,30]
[310961092,1704835974456,-860.51,0.00041342,30]
[310961094,1704835974466,-975.74,0.00041342,30]
[310961096,1704835974475,-693.44,0.00041342,30]
[310961098,1704835974485,-500.0,0.00041342,30]
[310961101,1704835974495,-500.0,0.00041342,30]
[310961103,1704835974505,-812.42,0.00041342,30]
[310961105,1704835974515,-1252.33,0.00041342,30]
[310961107,1704835974525,-500.0,0.00041342,30]
[310961108,1704835974537,-500.0,0.00041342,30]
[310961110,1704835974549,-1661.63,0.00041342,30]
[310961112,1704835974560,-835.41,0.00041342,30]
[310961115,1704835974571,-929.16,0.00041342,30]
[310961117,1704835974582,-500.0,0.00041342,30]
[310961119,1704835974593,-996.89,0.00041342,4]
[310961121,1704835974604,-500.0,0.00041342,30]
[310961123,1704835974614,-500.0,0.00041342,30]
[310961125,1704835974625,-500.0,0.00041342,30]
[310961137,1704835974848,-500.0,0.00041342,30]
[310961139,1704835974859,-500.0,0.00041342,30]
[310961141,1704835974871,-500.0,0.00041342,30]
[310961143,1704835974881,-1020.06,0.00041342,30]
[310961145,1704835974892,-500.0,0.00041342,30]
[310961147,1704835974907,-500.0,0.00041342,30]
[310961149,1704835974916,-500.0,0.00041342,30]
[310961151,1704835974927,-955.18,0.00041342,30]
[310961153,1704835974938,-1186.89,0.00041342,30]
[310961155,1704835974949,-500.0,0.00041342,2]
[310961157,1704835974959,-768.37,0.00041342,30]
[310961159,1704835974969,-636.74,0.00041342,30]
[310961161,1704835974978,-623.64,0.00041342,30]
[310961163,1704835974988,-500.0,0.00041342,30]
[310961165,1704835974998,-1030.22,0.00041342,30]
[310961167,1704835975008,-848.66,0.00041342,30]
[310961169,1704835975017,-500.0,0.00041342,30]
[310961171,1704835975027,-500.0,0.00041342,30]
[310961174,1704835975038,-1351.73,0.00041342,30]
[310961176,1704835975050,-1236.91,0.00041342,30]
[310961178,1704835975060,-555.34,0.00041342,30]
[310961179,1704835975070,-500.0,0.00041342,30]
[310961182,1704835975081,-551.84,0.00041342,30]
[310961184,1704835975091,-500.0,0.00041342,30]
[310961186,1704835975101,-500.0,0.00041342,30]
[310961187,1704835975112,-500.0,0.00041342,30]
[310961190,1704835975122,-500.0,0.00041342,30]
[310961192,1704835975132,-503.35874424,0.00041342,30]
[310961194,1704835975142,-500.0,0.00041342,30]
[310961196,1704835975159,-500.0,0.00041342,30]
[310961198,1704835975168,-576.84,0.00041342,30]
[310961200,1704835975179,-1038.11,0.00041342,30]
[310961202,1704835975188,-1217.37,0.00041342,30]
[310961204,1704835975198,-500.0,0.00041342,30]
[310961206,1704835975208,-500.0,0.00041342,30]
[310961208,1704835975218,-550.1996002,0.00041342,30]
[310961210,1704835975232,-500.0,0.00041342,30]
[310961212,1704835975242,-1358.69,0.00041342,30]
[310961214,1704835975254,-245.40211176,0.00041342,30]
[310961216,1704835975264,-500.0,0.00041342,30]
[310961218,1704835975274,-500.0,0.00041342,30]
[310961220,1704835975283,-500.0,0.00041342,30]
[310961222,1704835975293,-500.0,0.00041342,30]
[310961225,1704835975303,-500.0,0.00041342,30]
[310961227,1704835975313,-1307.04,0.00041342,30]
[310961229,1704835975323,-2306.18,0.00041342,30]
[310961231,1704835975333,-500.0,0.00041342,30]
[310961233,1704835975349,-500.0,0.00041342,30]
[310961235,1704835975359,-500.0,0.00041342,30]
[310961237,1704835975369,-504.78571716,0.00041342,30]
[310961239,1704835975380,-1192.74,0.00041342,30]
[310961241,1704835975390,-638.26013466,0.00041342,30]
[310961243,1704835975404,-500.0,0.00041342,30]
[310961246,1704835975415,-500.0,0.00041342,30]
[310961248,1704835975426,-500.0,0.00041342,30]
[310961250,1704835975436,-611.23,0.00041342,30]
[310961252,1704835975446,-907.9,0.00041342,30]
[310961254,1704835975456,-500.0,0.00041342,30]
[310961256,1704835975466,-500.0,0.00041342,30]
[310961302,1704835975882,-996.68,0.00041342,30]
[310961307,1704835975921,-500.0,0.00041342,30]
[310961309,1704835975931,-627.06,0.00041342,30]
[310961311,1704835975940,-500.0,0.00041342,30]
[310961313,1704835975949,-500.0,0.00041342,30]
[310961314,1704835975959,-500.0,0.00041342,30]
[310961316,1704835975968,-500.0,0.00041342,30]
[310961318,1704835975978,-500.0,0.00041342,30]
[310961321,1704835975987,-503.95,0.00041342,30]
[310961323,1704835975996,-500.0,0.00041342,30]
[310961325,1704835976007,-500.0,0.00041342,30]
[310961327,1704835976017,-968.8,0.00041342,30]
[310961329,1704835976026,-635.82,0.00041342,30]
[310961331,1704835976036,-1396.88,0.00041342,30]
[310961333,1704835976046,-1404.61,0.00041342,30]
[310961335,1704835976056,-500.0,0.00041342,30]
[310961337,1704835976066,-1231.44,0.00041342,30]
[310961339,1704835976075,-500.0,0.00041342,30]
[310961341,1704835976085,-554.78,0.00041342,30]
[310961343,1704835976095,-500.0,0.00041342,30]
[310961345,1704835976105,-1763.53,0.00041342,30]
[310961347,1704835976114,-500.0,0.00041342,30]
[310961349,1704835976124,-801.87,0.00041342,30]
[310961351,1704835976134,-500.0,0.00041342,30]
[310961353,1704835976144,-604.58,0.00041342,30]
[310961355,1704835976157,-1257.01,0.00041342,30]
[310961357,1704835976166,-500.0,0.00041342,30]
[310961359,1704835976180,-500.0,0.00041342,30]
[310961362,1704835976190,-1231.81,0.00041342,30]
[310961364,1704835976200,-500.0,0.00041342,30]
[310961366,1704835976210,-500.0,0.00041342,30]
[310961368,1704835976219,-2010.91,0.00041342,30]
[310961370,1704835976229,-1440.75,0.00041342,30]
[310961372,1704835976239,-896.14,0.00041342,30]
[310961374,1704835976249,-500.0,0.00041342,30]
[310961376,1704835976258,-500.0,0.00041342,30]
[310961378,1704835976269,-1418.35,0.00041342,30]
[310961380,1704835976278,-500.0,0.00041342,30]
[310961382,1704835976288,-632.29,0.00041342,30]
[310961384,1704835976298,-808.1,0.00041342,30]
[310961386,1704835976307,-921.45,0.00041342,30]
[310961388,1704835976317,-500.0,0.00041342,30]
[310961390,1704835976326,-500.0,0.00041342,30]
[310961392,1704835976337,-1186.03,0.00041342,30]
[310961394,1704835976348,-1164.7,0.00041342,30]
[310961395,1704835976358,-640.28,0.00041342,30]
[310961396,1704835976367,-1027.4,0.00041342,30]
[310961397,1704835976376,-1105.56,0.00041342,30]
[310961398,1704835976388,-500.0,0.00041342,30]
[310961399,1704835976400,-602.96,0.00041342,30]
[310961400,1704835976409,-943.57,0.00041342,30]
[310961401,1704835976419,-500.0,0.00041342,30]
[310961403,1704835976428,-771.07,0.00041342,30]
[310961405,1704835976438,-500.0,0.00041342,30]
[310961407,1704835976447,-500.0,0.00041342,30]
[310961409,1704835976457,-500.0,0.00041342,30]
[310961411,1704835976466,-1051.31,0.00041342,30]
[310961413,1704835976477,-916.0,0.00041342,30]
[310961415,1704835976486,-500.0,0.00041342,5]
[310961417,1704835976496,-1267.33,0.00041342,30]